{"text_format":"1","workbook":"xlsx","n_sheets":4,"sheets":["ICU1","ICU2","ICU3","totalICU"],"not_rendered":{"charts":0,"images":0,"macros":0,"external_links":0,"defined_names":0,"comments":0,"pivot_tables":0},"unopened":[],"bounds":{"document_bytes":16777216,"sheet_cells":100000,"rows_first":2000,"rows_last":500,"rows_between":2000,"halvings":0,"cell_chars":16384,"cell_head_chars":4096},"cells_cut":0,"cells_raw":0,"read":"whole","date_system":"1900"}

{"sheet":"ICU1","index":0,"n_rows":37,"n_cols":23,"rows_kept":37,"cut":false,"hidden":false,"merged":[[1,0,1,22],[2,1,3,2],[2,3,3,4],[2,5,3,6],[2,7,2,18],[2,19,3,20],[2,21,3,22],[3,7,3,8],[3,9,3,10],[3,11,3,12],[3,13,3,14],[3,15,3,16],[3,17,3,18]]}
[]
[" ICU 1"]
[null,"المرضى المنومين في البداية",null,"حالات الدخول",null,"تحويل إلى القسم ",null,"أنواع الخروج discharge type",null,null,null,null,null,null,null,null,null,null,null,"تحويل من القسم ",null,"المرضى في نهاية اليوم"]
["day",null,null,null,null,null,null,"شفاء +تحسن",null,"حسب الطلب",null,"إحالة إلى مرفق صحي آخر",null,"أخرى ",null,"وفيات ",null,"المجموع"]
["ايام ","s","ns","s","ns","s","ns","s","ns","s","ns","s","ns","s","ns","s","ns","s","ns","saudi","n.saudi","s","ns"]
[1,1,1,1,1,null,null,null,null,null,null,null,null,null,null,null,null,{"$f":"P6+N6+L6+J6+H6","v":0},{"$f":"Q6+O6+M6+K6+I6","v":0},null,null,{"$f":"(B6+D6+F6)-(R6+T6)","v":2},{"$f":"(C6+E6+G6)-(S6+U6)","v":2}]
[2,{"$f":"V6","v":2},{"$f":"W6","v":2},0,0,null,null,null,null,null,null,null,null,null,null,null,null,{"$f":"P7+N7+L7+J7+H7","v":0},{"$f":"Q7+O7+M7+K7+I7","v":0},1,0,{"$f":"(B7+D7+F7)-(R7+T7)","v":1},{"$f":"(C7+E7+G7)-(S7+U7)","v":2}]
[3,{"$f":"V7","v":1},{"$f":"W7","v":2},1,0,null,null,null,null,null,null,null,null,null,null,null,null,0,0,null,null,2,2]
[4,2,2,null,null,1,1,null,null,null,null,null,null,null,null,null,null,0,0,0,1,3,2]
[5,3,2,null,null,null,null,null,null,1,0,null,null,null,null,null,null,1,0,2,0,0,2]
[6,0,2,0,0,null,null,null,null,null,null,null,null,null,null,null,null,0,0,null,null,0,2]
[7,0,2,0,0,null,null,null,null,null,null,null,null,null,null,null,null,0,0,null,null,0,2]
[8,0,2,0,0,null,null,null,null,null,null,null,null,null,null,null,null,0,0,null,null,0,2]
[9,0,2,0,0,null,null,0,1,null,null,null,null,null,null,null,null,0,1,null,null,0,1]
[10,0,1,0,0,null,null,null,null,null,null,null,null,null,null,null,null,0,0,null,null,0,1]
[11,0,1,0,1,null,null,null,null,null,null,null,null,null,null,null,null,0,0,null,null,0,2]
[12,0,2,1,2,null,null,null,null,null,null,null,null,null,null,null,null,0,0,null,null,1,4]
[13,1,4,0,0,null,null,null,null,null,null,null,null,null,null,null,null,0,0,null,null,1,4]
[14,1,4,0,0,null,null,0,2,1,0,null,null,null,null,null,null,1,2,null,null,0,2]
[15,0,2,0,0,null,null,null,null,null,null,null,null,null,null,null,null,0,0,null,null,0,2]
[16,0,2,0,0,null,null,null,null,null,null,null,null,null,null,null,null,0,0,null,null,0,2]
[17,0,2,1,0,1,0,null,null,null,null,null,null,null,null,null,null,0,0,null,null,2,2]
[18,2,2,0,0,null,null,0,1,null,null,null,null,null,null,null,null,0,1,null,null,2,1]
[19,2,1,0,1,null,null,null,null,null,null,null,null,null,null,null,null,0,0,0,1,2,1]
[20,2,1,0,0,null,null,null,null,null,null,null,null,null,null,null,null,0,0,null,null,2,1]
[21,2,1,0,0,null,null,null,null,null,null,null,null,null,null,null,null,0,0,null,null,2,1]
[22,2,1,1,0,null,null,null,null,1,0,null,null,null,null,null,null,1,0,null,null,2,1]
[23,2,1,0,0,null,null,null,null,null,null,null,null,null,null,null,null,0,0,null,null,2,1]
[24,2,1,2,1,null,null,null,null,1,0,null,null,null,null,null,null,1,0,null,null,3,2]
[25,3,2,0,1,null,null,null,null,null,null,null,null,null,null,null,null,0,0,0,1,3,2]
[26,3,2,2,0,null,null,1,0,null,null,null,null,null,null,null,null,1,0,1,0,3,2]
[27,3,2,0,0,null,null,0,1,null,null,null,null,null,null,null,null,0,1,1,0,2,1]
[28,2,1,0,0,null,null,null,null,null,null,null,null,null,null,null,null,0,0,null,null,2,1]
[29,2,1,1,0,null,null,null,null,null,null,null,null,null,null,null,null,0,0,null,null,3,1]
[30,3,1,0,0,null,null,null,null,null,null,null,null,null,null,null,null,0,0,null,null,3,1]
[31,3,1,1,0,null,null,null,null,null,null,null,null,null,null,null,null,0,0,null,null,4,1]
["المجموع",{"$f":"SUM(B6:B36)","v":44},{"$f":"SUM(C6:C36)","v":53},11,7,2,1,1,5,4,0,0,0,0,0,0,0,5,5,5,3,47,53]

{"sheet":"ICU2","index":1,"n_rows":37,"n_cols":23,"rows_kept":37,"cut":false,"hidden":false,"merged":[[3,13,3,14],[3,15,3,16],[3,17,3,18],[1,0,1,22],[2,1,3,2],[2,3,3,4],[2,5,3,6],[2,7,2,18],[2,19,3,20],[2,21,3,22],[3,7,3,8],[3,9,3,10],[3,11,3,12]]}
[]
[" ICU 2"]
[null,"المرضى المنومين في البداية",null,"حالات الدخول",null,"تحويل إلى القسم ",null,"أنواع الخروج discharge type",null,null,null,null,null,null,null,null,null,null,null,"تحويل من القسم ",null,"المرضى في نهاية اليوم"]
["day",null,null,null,null,null,null,"شفاء +تحسن",null,"حسب الطلب",null,"إحالة إلى مرفق صحي آخر",null,"أخرى ",null,"وفيات ",null,"المجموع"]
["ايام ","s","ns","s","ns","s","ns","s","ns","s","ns","s","ns","s","ns","s","ns","s","ns","saudi","n.saudi","s","ns"]
[1,1,1,1,1,null,null,null,null,null,null,null,null,null,null,null,null,{"$f":"P6+N6+L6+J6+H6","v":0},{"$f":"Q6+O6+M6+K6+I6","v":0},null,null,{"$f":"(B6+D6+F6)-(R6+T6)","v":2},{"$f":"(C6+E6+G6)-(S6+U6)","v":2}]
[2,{"$f":"V6","v":2},{"$f":"W6","v":2},0,0,null,null,null,null,null,null,null,null,null,null,null,null,{"$f":"P7+N7+L7+J7+H7","v":0},0,1,0,{"$f":"(B7+D7+F7)-(R7+T7)","v":1},2]
[3,{"$f":"V7","v":1},2,1,0,null,null,null,null,null,null,null,null,null,null,null,null,0,0,null,null,2,2]
[4,2,2,null,null,1,1,null,null,null,null,null,null,null,null,null,null,0,0,0,1,3,2]
[5,3,2,null,null,null,null,null,null,1,0,null,null,null,null,null,null,1,0,2,0,0,2]
[6,0,2,0,0,null,null,null,null,null,null,null,null,null,null,null,null,0,0,null,null,0,2]
[7,0,2,0,0,null,null,null,null,null,null,null,null,null,null,null,null,0,0,null,null,0,2]
[8,0,2,0,0,null,null,null,null,null,null,null,null,null,null,null,null,0,0,null,null,0,2]
[9,0,2,0,0,null,null,0,1,null,null,null,null,null,null,null,null,0,1,null,null,0,1]
[10,0,1,0,0,null,null,null,null,null,null,null,null,null,null,null,null,0,0,null,null,0,1]
[11,0,1,0,1,null,null,null,null,null,null,null,null,null,null,null,null,0,0,null,null,0,2]
[12,0,2,1,2,null,null,null,null,null,null,null,null,null,null,null,null,0,0,null,null,1,4]
[13,1,4,0,0,null,null,null,null,null,null,null,null,null,null,null,null,0,0,null,null,1,4]
[14,1,4,0,0,null,null,0,2,1,0,null,null,null,null,null,null,1,2,null,null,0,2]
[15,0,2,0,0,null,null,null,null,null,null,null,null,null,null,null,null,0,0,null,null,0,2]
[16,0,2,0,0,null,null,null,null,null,null,null,null,null,null,null,null,0,0,null,null,0,2]
[17,0,2,1,0,1,0,null,null,null,null,null,null,null,null,null,null,0,0,null,null,2,2]
[18,2,2,0,0,null,null,0,1,null,null,null,null,null,null,null,null,0,1,null,null,2,1]
[19,2,1,0,1,null,null,null,null,null,null,null,null,null,null,null,null,0,0,0,1,2,1]
[20,2,1,0,0,null,null,null,null,null,null,null,null,null,null,null,null,0,0,null,null,2,1]
[21,2,1,0,0,null,null,null,null,null,null,null,null,null,null,null,null,0,0,null,null,2,1]
[22,2,1,1,0,null,null,null,null,1,0,null,null,null,null,null,null,1,0,null,null,2,1]
[23,2,1,0,0,null,null,null,null,null,null,null,null,null,null,null,null,0,0,null,null,2,1]
[24,2,1,2,1,null,null,null,null,1,0,null,null,null,null,null,null,1,0,null,null,3,2]
[25,3,2,0,1,null,null,null,null,null,null,null,null,null,null,null,null,0,0,0,1,3,2]
[26,3,2,2,0,null,null,1,0,null,null,null,null,null,null,null,null,1,0,1,0,3,2]
[27,3,2,0,0,null,null,0,1,null,null,null,null,null,null,null,null,0,1,1,0,2,1]
[28,2,1,0,0,null,null,null,null,null,null,null,null,null,null,null,null,0,0,null,null,2,1]
[29,2,1,1,0,null,null,null,null,null,null,null,null,null,null,null,null,0,0,null,null,3,1]
[30,3,1,0,0,null,null,null,null,null,null,null,null,null,null,null,null,0,0,null,null,3,1]
[31,3,1,1,0,null,null,null,null,null,null,null,null,null,null,null,null,0,0,null,null,4,1]
["المجموع",{"$f":"SUM(B6:B36)","v":44},{"$f":"SUM(C6:C36)","v":53},11,7,2,1,1,5,4,0,0,0,0,0,0,0,5,5,5,3,47,53]

{"sheet":"ICU3","index":2,"n_rows":37,"n_cols":23,"rows_kept":37,"cut":false,"hidden":false,"merged":[[3,13,3,14],[3,15,3,16],[3,17,3,18],[1,0,1,22],[2,1,3,2],[2,3,3,4],[2,5,3,6],[2,7,2,18],[2,19,3,20],[2,21,3,22],[3,7,3,8],[3,9,3,10],[3,11,3,12]]}
[]
["  ICU 3"]
[null,"المرضى المنومين في البداية",null,"حالات الدخول",null,"تحويل إلى القسم ",null,"أنواع الخروج discharge type",null,null,null,null,null,null,null,null,null,null,null,"تحويل من القسم ",null,"المرضى في نهاية اليوم"]
["day",null,null,null,null,null,null,"شفاء +تحسن",null,"حسب الطلب",null,"إحالة إلى مرفق صحي آخر",null,"أخرى ",null,"وفيات ",null,"المجموع"]
["ايام ","s","ns","s","ns","s","ns","s","ns","s","ns","s","ns","s","ns","s","ns","s","ns","saudi","n.saudi","s","ns"]
[1,1,1,1,1,null,null,null,null,null,null,null,null,null,null,null,null,{"$f":"P6+N6+L6+J6+H6","v":0},{"$f":"Q6+O6+M6+K6+I6","v":0},null,null,{"$f":"(B6+D6+F6)-(R6+T6)","v":2},{"$f":"(C6+E6+G6)-(S6+U6)","v":2}]
[2,{"$f":"V6","v":2},{"$f":"W6","v":2},0,0,null,null,null,null,null,null,null,null,null,null,null,null,{"$f":"P7+N7+L7+J7+H7","v":0},0,1,0,{"$f":"(B7+D7+F7)-(R7+T7)","v":1},2]
[3,{"$f":"V7","v":1},2,1,0,null,null,null,null,null,null,null,null,null,null,null,null,0,0,null,null,2,2]
[4,2,2,null,null,1,1,null,null,null,null,null,null,null,null,null,null,0,0,0,1,3,2]
[5,3,2,null,null,null,null,null,null,1,0,null,null,null,null,null,null,1,0,2,0,0,2]
[6,0,2,0,0,null,null,null,null,null,null,null,null,null,null,null,null,0,0,null,null,0,2]
[7,0,2,0,0,null,null,null,null,null,null,null,null,null,null,null,null,0,0,null,null,0,2]
[8,0,2,0,0,null,null,null,null,null,null,null,null,null,null,null,null,0,0,null,null,0,2]
[9,0,2,0,0,null,null,0,1,null,null,null,null,null,null,null,null,0,1,null,null,0,1]
[10,0,1,0,0,null,null,null,null,null,null,null,null,null,null,null,null,0,0,null,null,0,1]
[11,0,1,0,1,null,null,null,null,null,null,null,null,null,null,null,null,0,0,null,null,0,2]
[12,0,2,1,2,null,null,null,null,null,null,null,null,null,null,null,null,0,0,null,null,1,4]
[13,1,4,0,0,null,null,null,null,null,null,null,null,null,null,null,null,0,0,null,null,1,4]
[14,1,4,0,0,null,null,0,2,1,0,null,null,null,null,null,null,1,2,null,null,0,2]
[15,0,2,0,0,null,null,null,null,null,null,null,null,null,null,null,null,0,0,null,null,0,2]
[16,0,2,0,0,null,null,null,null,null,null,null,null,null,null,null,null,0,0,null,null,0,2]
[17,0,2,1,0,1,0,null,null,null,null,null,null,null,null,null,null,0,0,null,null,2,2]
[18,2,2,0,0,null,null,0,1,null,null,null,null,null,null,null,null,0,1,null,null,2,1]
[19,2,1,0,1,null,null,null,null,null,null,null,null,null,null,null,null,0,0,0,1,2,1]
[20,2,1,0,0,null,null,null,null,null,null,null,null,null,null,null,null,0,0,null,null,2,1]
[21,2,1,0,0,null,null,null,null,null,null,null,null,null,null,null,null,0,0,null,null,2,1]
[22,2,1,1,0,null,null,null,null,1,0,null,null,null,null,null,null,1,0,null,null,2,1]
[23,2,1,0,0,null,null,null,null,null,null,null,null,null,null,null,null,0,0,null,null,2,1]
[24,2,1,2,1,null,null,null,null,1,0,null,null,null,null,null,null,1,0,null,null,3,2]
[25,3,2,0,1,null,null,null,null,null,null,null,null,null,null,null,null,0,0,0,1,3,2]
[26,3,2,2,0,null,null,1,0,null,null,null,null,null,null,null,null,1,0,1,0,3,2]
[27,3,2,0,0,null,null,0,1,null,null,null,null,null,null,null,null,0,1,1,0,2,1]
[28,2,1,0,0,null,null,null,null,null,null,null,null,null,null,null,null,0,0,null,null,2,1]
[29,2,1,1,0,null,null,null,null,null,null,null,null,null,null,null,null,0,0,null,null,3,1]
[30,3,1,0,0,null,null,null,null,null,null,null,null,null,null,null,null,0,0,null,null,3,1]
[31,3,1,1,0,null,null,null,null,null,null,null,null,null,null,null,null,0,0,null,null,4,1]
["المجموع",{"$f":"SUM(B6:B36)","v":44},{"$f":"SUM(C6:C36)","v":53},11,7,2,1,1,5,4,0,0,0,0,0,0,0,5,5,5,3,47,53]

{"sheet":"totalICU","index":3,"n_rows":37,"n_cols":25,"rows_kept":37,"cut":false,"hidden":false,"merged":[[10,24,21,28],[1,0,1,22],[2,1,3,2],[2,3,3,4],[2,5,3,6],[2,7,2,18],[2,19,3,20],[2,21,3,22],[3,7,3,8],[3,9,3,10],[3,11,3,12],[3,13,3,14],[3,15,3,16],[3,17,3,18]]}
[]
["ICU"]
[null,"المرضى المنومين في البداية",null,"حالات الدخول",null,"تحويل إلى القسم ",null,"أنواع الخروج discharge type",null,null,null,null,null,null,null,null,null,null,null,"تحويل من القسم ",null,"المرضى في نهاية اليوم"]
["day",null,null,null,null,null,null,"شفاء +تحسن",null,"حسب الطلب",null,"إحالة إلى مرفق صحي آخر",null,"أخرى ",null,"وفيات ",null,"المجموع"]
["ايام ","s","ns","s","ns","s","ns","s","ns","s","ns","s","ns","s","ns","s","ns","s","ns","saudi","n.saudi","s","ns"]
[1,3,3,3,3,null,null,null,null,null,null,null,null,null,null,null,null,{"$f":"P6+N6+L6+J6+H6","v":0},{"$f":"Q6+O6+M6+K6+I6","v":0},null,null,{"$f":"(B6+D6+F6)-(R6+T6)","v":6},{"$f":"(C6+E6+G6)-(S6+U6)","v":6}]
[2,{"$f":"V6","v":6},{"$f":"W6","v":6},0,0,null,null,null,null,null,null,null,null,null,null,null,null,{"$f":"P7+N7+L7+J7+H7","v":0},0,3,0,{"$f":"(B7+D7+F7)-(R7+T7)","v":3},6]
[3,{"$f":"V7","v":3},6,3,0,null,null,null,null,null,null,null,null,null,null,null,null,0,0,null,null,6,6]
[4,6,6,null,null,3,3,null,null,null,null,null,null,null,null,null,null,0,0,0,3,9,6]
[5,9,6,null,null,null,null,null,null,3,0,null,null,null,null,null,null,3,0,6,0,0,6]
[6,0,6,0,0,null,null,null,null,null,null,null,null,null,null,null,null,0,0,null,null,0,6,null,"المطلوب نسخ بيانات الشيت 1-2-3 الاعمده الخضراء بحيث يتم جمعها تلقائيا في شيت totalICU في نفس الخلايا… مع العلم بأن بقية الاعمدة الاخرى يوجد بها معادلات"]
[7,0,6,0,0,null,null,null,null,null,null,null,null,null,null,null,null,0,0,null,null,0,6]
[8,0,6,0,0,null,null,null,null,null,null,null,null,null,null,null,null,0,0,null,null,0,6]
[9,0,6,0,0,null,null,0,3,null,null,null,null,null,null,null,null,0,3,null,null,0,3]
[10,0,3,0,0,null,null,null,null,null,null,null,null,null,null,null,null,0,0,null,null,0,3]
[11,0,3,0,3,null,null,null,null,null,null,null,null,null,null,null,null,0,0,null,null,0,6]
[12,0,6,3,6,null,null,null,null,null,null,null,null,null,null,null,null,0,0,null,null,3,12]
[13,3,12,0,0,null,null,null,null,null,null,null,null,null,null,null,null,0,0,null,null,3,12]
[14,3,12,0,0,null,null,0,6,3,0,null,null,null,null,null,null,3,6,null,null,0,6]
[15,0,6,0,0,null,null,null,null,null,null,null,null,null,null,null,null,0,0,null,null,0,6]
[16,0,6,0,0,null,null,null,null,null,null,null,null,null,null,null,null,0,0,null,null,0,6]
[17,0,6,3,0,3,0,null,null,null,null,null,null,null,null,null,null,0,0,null,null,6,6]
[18,6,6,0,0,null,null,0,3,null,null,null,null,null,null,null,null,0,3,null,null,6,3]
[19,6,3,0,3,null,null,null,null,null,null,null,null,null,null,null,null,0,0,0,3,6,3]
[20,6,3,0,0,null,null,null,null,null,null,null,null,null,null,null,null,0,0,null,null,6,3]
[21,6,3,0,0,null,null,null,null,null,null,null,null,null,null,null,null,0,0,null,null,6,3]
[22,6,3,3,0,null,null,null,null,3,0,null,null,null,null,null,null,3,0,null,null,6,3]
[23,6,3,0,0,null,null,null,null,null,null,null,null,null,null,null,null,{"$f":"P28+N28+L28+J28+H28","v":0},0,null,null,6,3]
[24,6,3,6,3,null,null,null,null,3,0,null,null,null,null,null,null,3,0,null,null,9,6]
[25,9,6,0,3,null,null,null,null,null,null,null,null,null,null,null,null,0,0,0,3,9,6]
[26,9,6,6,0,null,null,3,0,null,null,null,null,null,null,null,null,3,0,3,0,9,6]
[27,9,6,0,0,null,null,0,3,null,null,null,null,null,null,null,null,0,3,3,0,6,3]
[28,6,3,0,0,null,null,null,null,null,null,null,null,null,null,null,null,0,0,null,null,6,3]
[29,{"$f":"V33","v":6},3,3,0,null,null,null,null,null,null,null,null,null,null,null,null,0,0,null,null,9,3]
[30,9,3,0,0,null,null,null,null,null,null,null,null,null,null,null,null,0,0,null,null,9,{"$f":"(C35+E35+G35)-(S35+U35)","v":3}]
[31,9,3,3,0,null,null,null,null,null,null,null,null,null,null,null,null,0,0,null,null,12,{"$f":"(C36+E36+G36)-(S36+U36)","v":3}]
["المجموع",{"$f":"SUM(B6:B36)","v":132},{"$f":"SUM(C6:C36)","v":159},33,21,6,3,3,15,12,0,0,0,0,0,0,0,15,15,15,9,141,159]